bitfinex-derivatives/quotes_BTCF0:USTF0_20241020
["timestamp","ask_amount","ask_price","bid_price","bid_amount"]
[1729395383184,0.09768551,68183.0,68182.0,0.30643979]
[1729395384282,0.0002,68183.0,68182.0,0.30643979]
[1729395385391,0.09172111,68183.0,68182.0,0.30643979]
[1729395385594,0.04595619,68183.0,68182.0,0.30643979]
[1729395385984,0.09807607,68183.0,68182.0,0.30643979]
[1729395386190,0.14382308,68183.0,68182.0,0.30643979]
[1729395389396,0.0002,68183.0,68182.0,0.30643979]
[1729395390591,0.0002,68183.0,68182.0,0.36505284]
[1729395394604,0.0002,68183.0,68182.0,0.30643979]
[1729395395602,0.0002,68183.0,68182.0,0.36504845]
[1729395398999,0.0002,68183.0,68182.0,0.30643979]
[1729395399890,0.0002,68183.0,68182.0,0.36505367]
[1729395401399,0.0002,68183.0,68182.0,0.30643979]
[1729395404294,0.05289287,68183.0,68182.0,0.30643979]
[1729395404498,0.0002,68183.0,68182.0,0.30643979]
[1729395404693,0.09916712,68183.0,68182.0,0.30643979]
[1729395404999,0.26030917,68183.0,68182.0,0.30643979]
[1729395405198,0.09916712,68183.0,68182.0,0.30643979]
[1729395408302,0.09916712,68183.0,68182.0,0.54983587]
[1729395408496,0.00220049,68192.0,68191.0,0.065994]
[1729395408702,0.065983,68203.0,68191.0,0.4502]
[1729395408900,0.065983,68203.0,68200.0,0.065985]
[1729395409314,0.065983,68203.0,68201.0,0.22075776]
[1729395411501,0.3608,68206.0,68201.0,0.22075776]
[1729395411710,0.3608,68206.0,68204.0,0.065981]
[1729395411996,0.3608,68206.0,68205.0,0.28688364]
[1729395412402,0.3608,68206.0,68205.0,0.06598]
[1729395413010,0.426779,68206.0,68205.0,0.06598]
[1729395415319,0.065979,68206.0,68205.0,0.06598]
[1729395417007,0.0323,68208.0,68201.0,0.1108232]
[1729395417212,0.0002,68204.0,68201.0,0.1768072]
[1729395417526,0.0002,68204.0,68202.0,0.22068699]
[1729395417823,0.0002,68204.0,68202.0,0.28666999]
[1729395421035,0.066182,68204.0,68202.0,0.28666999]
[1729395421223,0.065982,68203.0,68202.0,0.28666999]
[1729395422319,0.065982,68203.0,68202.0,0.22068699]
[1729395427533,0.065982,68203.0,68202.0,0.10330906]
[1729395427928,0.16004868,68203.0,68202.0,0.10330906]
[1729395428331,0.065982,68203.0,68202.0,0.16929206]
[1729395430640,0.10904522,68203.0,68202.0,0.16929206]
[1729395432337,0.10903718,68203.0,68202.0,0.16929206]
[1729395434542,0.065982,68203.0,68202.0,0.16929206]
[1729395437529,0.065982,68203.0,68202.0,0.21317664]
[1729395438341,0.065982,68203.0,68202.0,0.16929206]
[1729395442444,0.15828078,68203.0,68202.0,0.16929206]
[1729395445242,0.15828078,68203.0,68202.0,0.05191423]
[1729395446651,0.15586115,68203.0,68202.0,0.05191423]
[1729395447347,0.065985,68200.0,68199.0,0.0002]
[1729395447648,0.10800997,68200.0,68199.0,0.0002]
[1729395447840,0.15586415,68200.0,68199.0,0.0002]
[1729395448447,0.15586415,68200.0,68199.0,0.066186]
[1729395449346,0.15586415,68200.0,68199.0,0.08767757]
[1729395449550,0.065985,68200.0,68199.0,0.08767757]
[1729395450347,0.0002,68204.0,68201.0,0.065984]
[1729395450547,0.0002,68204.0,68202.0,0.0002]
[1729395451348,0.066182,68204.0,68202.0,0.0002]
[1729395456654,0.065982,68203.0,68202.0,0.0002]
[1729395457556,0.15552861,68203.0,68199.0,0.02169157]
[1729395457850,0.08954661,68202.0,68199.0,0.02169157]
[1729395458148,0.08954661,68201.0,68200.0,0.065985]
[1729395464449,0.427542,68203.0,68200.0,0.065985]
[1729395464650,0.426782,68203.0,68201.0,0.0002]
[1729395468850,0.426782,68203.0,68201.0,0.066184]
[1729395479466,0.426782,68203.0,68201.0,0.02449507]
[1729395479467,0.14462451,68202.0,68201.0,0.02449507]
[1729395479672,0.14462451,68202.0,68199.0,0.02169157]
[1729395479960,0.08874236,68201.0,68200.0,0.065985]
[1729395481863,0.15472636,68201.0,68200.0,0.065985]
[1729395483859,0.15384258,68201.0,68200.0,0.065985]
[1729395487574,0.065984,68201.0,68200.0,0.065985]
[1729395494772,0.15402839,68201.0,68200.0,0.03483339]
[1729395498770,0.15338505,68201.0,68200.0,0.03483339]
[1729395502580,0.065984,68201.0,68200.0,0.03483339]
[1729395517790,0.15311844,68201.0,68199.0,0.0002]
[1729395517985,0.08713444,68200.0,68199.0,0.0002]
[1729395522487,0.08713444,68200.0,68199.0,0.066186]
[1729395524696,0.065984,68201.0,68199.0,0.12469878]
[1729395524897,0.065984,68201.0,68199.0,0.12489878]
[1729395527099,0.065984,68201.0,68200.0,0.05851278]
[1729395527488,0.065984,68201.0,68199.0,0.066386]
[1729395527489,0.065984,68201.0,68199.0,0.12489878]
[1729395529402,0.065984,68201.0,68200.0,0.05851278]
[1729395531906,0.065984,68201.0,68199.0,0.12489878]
[1729395532702,0.08666677,68200.0,68199.0,0.066386]
[1729395533006,0.08668061,68200.0,68199.0,0.066386]
[1729395534401,0.08668061,68200.0,68199.0,0.03566237]
[1729395539706,0.065984,68201.0,68199.0,0.03566237]
[1729395542609,0.3608,68204.0,68199.0,0.03566237]
[1729395542802,0.065985,68200.0,68199.0,0.03566237]
[1729395547814,0.15194519,68200.0,68199.0,0.0002]
[1729395548510,0.15194519,68200.0,68199.0,0.066186]
[1729395554719,0.065985,68200.0,68199.0,0.066186]
[1729395558320,0.065985,68200.0,68199.0,0.0002]
[1729395573544,0.15144806,68200.0,68195.0,0.08936]
[1729395573937,0.15144806,68200.0,68199.0,0.22084525]
[1729395574138,0.15144806,68200.0,68198.0,0.28683225]
[1729395574338,0.15144806,68200.0,68198.0,0.065987]
[1729395574540,0.15144806,68200.0,68199.0,0.21993287]
[1729395576145,0.065985,68200.0,68199.0,0.21993287]
[1729395584748,0.15011879,68200.0,68199.0,0.21993287]
[1729395592048,0.15011879,68200.0,68199.0,0.10255013]
[1729395592756,0.065985,68200.0,68199.0,0.10255013]
[1729395595757,0.065985,68200.0,68199.0,0.14656715]
[1729395595953,0.065985,68200.0,68199.0,0.10255013]
[1729395596159,0.065985,68200.0,68199.0,0.14656715]
[1729395596857,0.065985,68200.0,68199.0,0.10255013]
[1729395597058,0.065985,68200.0,68199.0,0.14656715]
[1729395605466,0.065985,68200.0,68199.0,0.14656361]
[1729395607571,0.10390823,68200.0,68199.0,0.10255013]
[1729395607766,0.14891295,68200.0,68199.0,0.10255013]
[1729395610863,0.1489767,68200.0,68199.0,0.10255013]
[1729395614571,0.065985,68200.0,68199.0,0.10255013]
[1729395615069,0.065985,68200.0,68199.0,0.14656505]
[1729395615280,0.361,68204.0,68196.0,0.05868936]
[1729395615465,0.361,68204.0,68191.0,0.13333761]
[1729395615466,0.065992,68193.0,68191.0,0.13333761]
[1729395615661,0.065992,68193.0,68191.0,0.08932]
[1729395615875,0.065992,68193.0,68191.0,0.31006737]
[1729395616266,0.065992,68193.0,68191.0,0.08932]
[1729395616471,0.3608,68197.0,68190.0,0.04401761]
[1729395616776,0.3608,68197.0,68191.0,0.21980197]
[1729395616777,0.065993,68192.0,68191.0,0.21980197]
[1729395622778,0.14843516,68192.0,68191.0,0.21980197]
[1729395628683,0.10348493,68192.0,68191.0,0.21980197]
[1729395629670,0.065993,68192.0,68191.0,0.43702883]
[1729395636983,0.02196953,68192.0,68191.0,0.43702883]
[1729395637188,0.3608,68197.0,68191.0,0.43702883]
[1729395637390,0.3608,68197.0,68192.0,0.21722686]
[1729395637586,0.065991,68194.0,68193.0,0.21722686]
[1729395637792,0.065993,68193.0,68190.0,0.065995]
[1729395638088,0.065993,68193.0,68192.0,0.0002]
[1729395644589,0.10399097,68193.0,68192.0,0.0002]
[1729395644795,0.10399097,68193.0,68192.0,0.35392208]
[1729395644796,0.065993,68193.0,68192.0,0.35392208]
[1729395652997,0.065993,68193.0,68192.0,0.21702611]
[1729395659595,0.065993,68193.0,68192.0,0.11810736]
[1729395659796,0.10397072,68193.0,68192.0,0.0002]
[1729395668005,0.065993,68193.0,68192.0,0.35398802]
[1729395675005,0.065993,68193.0,68192.0,0.0002]
[1729395681914,0.065993,68193.0,68192.0,0.4565792]
[1729395682616,0.065993,68193.0,68192.0,0.45659165]
[1729395684621,0.065993,68193.0,68192.0,0.35388187]
[1729395687620,0.065993,68193.0,68192.0,0.35386846]
[1729395689924,0.065993,68193.0,68192.0,0.21699324]
[1729395690321,0.065993,68193.0,68192.0,0.09910375]
[1729395692626,0.065993,68193.0,68192.0,0.09912154]
[1729395697128,0.065993,68193.0,68192.0,0.0002]
[1729395705026,0.065993,68193.0,68192.0,0.21706524]
[1729395707427,0.065993,68193.0,68192.0,0.21706254]
[1729395712231,0.065993,68193.0,68192.0,0.21705217]
[1729395713138,0.065993,68193.0,68192.0,0.0002]
[1729395720039,0.065993,68193.0,68192.0,0.21705811]
[1729395725643,0.065993,68193.0,68192.0,0.21707828]
[1729395728051,0.10400018,68193.0,68192.0,0.0002]
[1729395730356,0.10395245,68193.0,68192.0,0.0002]
[1729395730953,0.065993,68193.0,68192.0,0.0002]
[1729395735056,0.065993,68193.0,68192.0,0.21715685]
[1729395735250,0.065993,68193.0,68192.0,0.21715675]
[1729395740051,0.065993,68193.0,68192.0,0.21717927]
[1729395742156,0.065993,68193.0,68192.0,0.09918862]
[1729395744960,0.065993,68193.0,68192.0,0.18728112]
[1729395748955,0.065993,68193.0,68192.0,0.18724443]
[1729395749663,0.065993,68193.0,68192.0,0.18724943]
[1729395750066,0.1037987,68193.0,68192.0,0.0002]
[1729395750867,0.065993,68193.0,68192.0,0.0002]
[1729395751768,0.065993,68193.0,68188.0,0.065996]
[1729395751769,0.065998,68187.0,68186.0,0.02087977]
[1729395751964,0.065999,68186.0,68177.0,0.04400127]
[1729395752168,0.80302025,68187.0,68181.0,0.066003]
[1729395752169,0.0002,68184.0,68181.0,0.066003]
[1729395752362,0.066002,68183.0,68182.0,0.0304]
[1729395757173,0.066002,68183.0,68182.0,0.1610557]
[1729395759465,0.066002,68183.0,68182.0,0.16096293]
[1729395760376,0.0002,68184.0,68182.0,0.27923365]
[1729395760580,0.066201,68184.0,68183.0,0.21743365]
[1729395765284,0.066002,68183.0,68182.0,0.0618]
[1729395765482,0.0002,68184.0,68182.0,0.4226]
[1729395765677,0.0002,68184.0,68183.0,0.28734958]
[1729395765883,0.0002,68184.0,68183.0,0.066002]
[1729395766080,0.0002,68184.0,68183.0,0.2859821]
[1729395772200,0.0002,68184.0,68183.0,0.50256275]
[1729395774197,0.0002,68184.0,68183.0,0.50257346]
[1729395777402,0.066201,68184.0,68183.0,0.50257346]
[1729395779099,0.066201,68184.0,68183.0,0.43666932]
[1729395782998,0.066201,68184.0,68183.0,0.21668922]
[1729395783507,0.098701,68184.0,68183.0,0.21668922]
[1729395785900,0.098701,68184.0,68183.0,0.0988563]
[1729395787203,0.098701,68184.0,68181.0,0.02585523]
[1729395787408,0.066003,68182.0,68178.0,0.08964]
[1729395787611,0.0329,68184.0,68178.0,0.08964]
[1729395787612,0.066002,68183.0,68182.0,0.21941917]
[1729395787812,0.0329,68184.0,68179.0,0.21941917]
[1729395788004,0.066004,68181.0,68179.0,0.21941917]
[1729395788204,0.066004,68181.0,68178.0,0.11629375]
[1729395788416,0.066204,68181.0,68179.0,0.21975349]
[1729395789111,0.066005,68180.0,68179.0,0.21975349]
[1729395795311,0.0002,68181.0,68179.0,0.57381837]
[1729395795522,0.066005,68180.0,68179.0,0.21975349]
[1729395795715,0.066005,68180.0,68179.0,0.57385144]
[1729395801810,0.066005,68180.0,68179.0,0.5725448]
[1729395802219,0.066005,68180.0,68179.0,0.21975349]
[1729395810222,0.066005,68180.0,68179.0,0.43627943]
[1729395816633,0.066005,68180.0,68179.0,0.43643011]
[1729395817325,0.066005,68180.0,68179.0,0.21975349]
[1729395825235,0.0002,68181.0,68179.0,0.5023231]
[1729395825443,0.0002,68181.0,68180.0,0.21656461]
[1729395825735,0.0002,68181.0,68180.0,0.50184386]
[1729395826434,0.0002,68181.0,68180.0,0.50179103]
[1729395829043,0.0002,68181.0,68180.0,0.86259103]
[1729395833338,0.0002,68181.0,68180.0,0.95187103]
[1729395837138,0.0002,68181.0,68180.0,0.88586603]
[1729395839247,0.066204,68181.0,68180.0,0.88586603]
[1729395840347,0.066204,68181.0,68180.0,0.66935425]
[1729395846053,0.066204,68181.0,68180.0,0.30855425]
[1729395847259,0.066204,68181.0,68180.0,0.52482803]
[1729395849456,0.066204,68181.0,68180.0,0.52506957]
[1729395854355,0.066204,68181.0,68180.0,0.52512405]
[1729395855458,0.066204,68181.0,68180.0,0.30855425]
[1729395862358,0.066204,68181.0,68180.0,0.52514041]
[1729395864361,0.066204,68181.0,68180.0,0.62778906]
[1729395864567,0.066204,68181.0,68180.0,0.52514041]
[1729395864866,0.066204,68181.0,68180.0,0.62778906]
[1729395866361,0.066204,68181.0,68180.0,0.53850906]
[1729395869475,0.066204,68181.0,68180.0,0.67524407]
[1729395870463,0.066204,68181.0,68180.0,0.21927425]
[1729395877658,0.066204,68181.0,68180.0,0.67523233]
[1729395879270,0.066204,68181.0,68180.0,0.67528345]
[1729395883572,0.066204,68181.0,68180.0,0.5726348]
[1729395884370,0.066204,68181.0,68180.0,0.67536288]
[1729395884576,0.066204,68181.0,68180.0,0.53860683]
[1729395884880,0.066204,68181.0,68180.0,0.67537327]
[1729395885674,0.066204,68181.0,68180.0,0.21927425]
[1729395892676,0.0002,68182.0,68180.0,0.69018573]
[1729395892880,0.066004,68181.0,68180.0,0.3366774]
[1729395893083,0.066004,68181.0,68180.0,0.690134]
[1729395900489,0.066004,68181.0,68180.0,0.67545594]
[1729395900789,0.066004,68181.0,68180.0,0.53866272]
[1729395901983,0.066004,68181.0,68180.0,0.67502515]
[1729395903483,0.066004,68181.0,68180.0,0.53866272]
[1729395904379,0.066004,68181.0,68180.0,0.43593763]
[1729395907385,0.066004,68181.0,68180.0,0.43526396]
[1729395907580,0.066004,68181.0,68180.0,0.21927425]
[1729395915512,0.0307,68185.0,68180.0,0.68903736]
[1729395915820,0.066003,68182.0,68181.0,0.21599115]
[1729395922622,0.066003,68182.0,68181.0,0.09853783]
[1729395924825,0.066003,68182.0,68181.0,0.21562634]
[1729395926725,0.066003,68182.0,68181.0,0.21536234]
[1729395929422,0.066003,68182.0,68181.0,0.11707069]
[1729395929624,0.066003,68182.0,68181.0,0.21528751]
[1729395930629,0.066003,68182.0,68178.0,0.15996115]
[1729395930830,0.0002,68180.0,68178.0,0.15996115]
[1729395931130,0.0002,68180.0,68179.0,0.22102385]
[1729395937636,0.0002,68180.0,68179.0,0.5722923]
[1729395940942,0.066205,68180.0,68179.0,0.5722923]
[1729395941637,0.066205,68180.0,68179.0,0.5723601]
[1729395944638,0.0002,68180.0,68179.0,0.5723601]
[1729395944831,0.0002,68180.0,68179.0,0.6383661]
[1729395945032,0.0002,68180.0,68179.0,0.6714661]
[1729395945740,0.0002,68180.0,68179.0,0.32012985]
[1729395946932,0.0002,68180.0,68179.0,0.25412385]
[1729395952645,0.066004,68181.0,68179.0,0.60533049]
[1729395952844,0.3608,68184.0,68180.0,0.35120664]
[1729395953040,0.3608,68184.0,68181.0,0.46860961]
[1729395953246,0.066003,68182.0,68181.0,0.33787744]
[1729395953446,0.066003,68182.0,68181.0,0.68908312]
[1729395953847,0.066003,68182.0,68181.0,0.57168015]
[1729395954043,0.066003,68182.0,68181.0,0.68908312]
[1729395956344,0.066003,68182.0,68181.0,0.57052674]
[1729395956545,0.066003,68182.0,68181.0,0.68792971]
[1729395960562,0.066003,68182.0,68181.0,0.57052674]
[1729395960742,0.066003,68182.0,68181.0,0.22047447]
[1729395967655,0.066003,68182.0,68181.0,0.43503835]
[1729395974371,0.066003,68182.0,68181.0,0.43503343]
[1729395975770,0.066003,68182.0,68181.0,0.22047447]
[1729395982879,0.066003,68182.0,68181.0,0.4350083]
[1729395989679,0.066003,68182.0,68181.0,0.43222001]
[1729395993491,0.3608,68193.0,68181.0,0.6778754]
[1729395993688,0.3608,68193.0,68185.0,0.10272632]
[1729395993996,0.3608,68193.0,68183.0,0.0002]
[1729395993997,0.00220013,68196.0,68187.0,0.46352632]
[1729395994179,0.00220013,68196.0,68194.0,0.08797592]
[1729395994383,0.00220013,68196.0,68195.0,0.09641175]
[1729395994693,0.00220013,68196.0,68195.0,0.18438767]
[1729395995095,0.00220013,68196.0,68195.0,0.09641175]
[1729395996298,0.06818913,68196.0,68195.0,0.09641175]
[1729395997898,0.06818913,68196.0,68193.0,0.065991]
[1729395997899,0.10997271,68196.0,68193.0,0.065991]
[1729395998192,0.04198358,68195.0,68194.0,0.22021547]
[1729395998786,0.0002,68195.0,68194.0,0.22021547]
[1729395998991,0.04204592,68195.0,68194.0,0.22021547]
[1729395999192,0.10795522,68195.0,68194.0,0.22021547]
[1729395999392,0.06619,68195.0,68194.0,0.22021547]
[1729396008191,0.06619,68195.0,68194.0,0.27877248]
[1729396008696,0.06619,68195.0,68194.0,0.22021547]
[1729396021206,0.15550143,68195.0,68194.0,0.22021547]
[1729396021601,0.15552795,68195.0,68194.0,0.22021547]
[1729396026509,0.15569488,68195.0,68194.0,0.22021547]
[1729396027909,0.06619,68195.0,68194.0,0.31637462]
[1729396031216,0.06619,68195.0,68194.0,0.31639487]
[1729396035017,0.10806772,68195.0,68194.0,0.22021547]
[1729396036819,0.15574322,68195.0,68194.0,0.22021547]
[1729396040224,0.10806772,68195.0,68194.0,0.22021547]
[1729396040728,0.10801526,68195.0,68194.0,0.22021547]
[1729396042230,0.10801526,68195.0,68194.0,0.28620647]
[1729396042928,0.06619,68195.0,68194.0,0.49682209]
[1729396043426,0.0002,68195.0,68194.0,0.49682209]
[1729396045927,0.0002,68195.0,68194.0,0.38229192]
[1729396047621,0.0002,68195.0,68194.0,0.49685246]
[1729396047822,0.0002,68195.0,68194.0,0.38229192]
[1729396048223,0.0002,68195.0,68194.0,0.49684922]
[1729396049724,0.0002,68195.0,68194.0,0.28620647]
[1729396050038,0.0002,68195.0,68194.0,0.49686644]
[1729396050331,0.0002,68195.0,68194.0,0.28620647]
[1729396050933,0.04212481,68195.0,68194.0,0.28620647]
[1729396051325,0.0002,68195.0,68194.0,0.28620647]
[1729396051627,0.04215143,68195.0,68194.0,0.28620647]
[1729396051934,0.0002,68195.0,68194.0,0.28620647]
[1729396052233,0.04215143,68195.0,68194.0,0.28620647]
[1729396054520,0.04215143,68195.0,68194.0,0.37544647]
[1729396056733,0.0002,68195.0,68194.0,0.37544647]
[1729396057627,0.0002,68195.0,68194.0,0.54472805]
[1729396060827,0.0002,68195.0,68194.0,0.47138341]
[1729396061227,0.0002,68195.0,68194.0,0.54470225]
[1729396063734,0.0002,68195.0,68194.0,0.37544647]
[1729396068837,0.0002,68195.0,68194.0,0.28620647]
[1729396069036,0.0002,68195.0,68194.0,0.37540647]
[1729396070041,0.09032012,68195.0,68194.0,0.37540647]
[1729396071646,0.09032301,68195.0,68194.0,0.37540647]
[1729396072057,0.09032301,68195.0,68194.0,0.22021547]
[1729396072249,0.15631301,68195.0,68194.0,0.30941547]
[1729396072749,0.06619,68195.0,68194.0,0.49344372]
[1729396073946,0.06619,68195.0,68194.0,0.40424372]
[1729396074245,0.06619,68195.0,68194.0,0.40543016]
[1729396074751,0.06619,68195.0,68194.0,0.49342486]
[1729396074950,0.06619,68195.0,68194.0,0.40543016]
[1729396075740,0.06619,68195.0,68194.0,0.49342742]
[1729396076143,0.06619,68195.0,68194.0,0.49342788]
[1729396076546,0.06619,68195.0,68194.0,0.49343284]
[1729396076749,0.0002,68195.0,68194.0,0.47142612]
[1729396080763,0.0002,68195.0,68194.0,0.47141197]
[1729396081550,0.0002,68195.0,68194.0,0.54474954]
[1729396082257,0.0002,68195.0,68194.0,0.47141197]
[1729396082453,0.0002,68195.0,68194.0,0.54475159]
[1729396085158,0.0002,68195.0,68194.0,0.47141197]
[1729396087763,0.09016064,68195.0,68194.0,0.37540647]
[1729396090960,0.09020193,68195.0,68194.0,0.37540647]
[1729396094359,0.04811955,68195.0,68194.0,0.37540647]
[1729396094580,0.09021978,68195.0,68194.0,0.37540647]
[1729396095758,0.0002,68195.0,68194.0,0.58565034]
[1729396099259,0.0002,68195.0,68194.0,0.58563267]
[1729396102863,0.0002,68195.0,68194.0,0.47335426]
[1729396108267,0.0002,68195.0,68194.0,0.56135162]
[1729396108873,0.0002,68195.0,68194.0,0.47335426]
[1729396109272,0.0002,68195.0,68194.0,0.56131906]
[1729396109774,0.0002,68195.0,68194.0,0.47332184]
[1729396110074,0.0002,68195.0,68194.0,0.58759353]
[1729396110976,0.0002,68195.0,68194.0,0.37744647]
[1729396111561,0.09044875,68195.0,68194.0,0.37744647]
[1729396112276,0.09043208,68195.0,68194.0,0.37744647]
[1729396113672,0.04238999,68195.0,68194.0,0.37744647]
[1729396113878,0.04238999,68195.0,68194.0,0.28620647]
[1729396114075,0.0002,68195.0,68194.0,0.37744647]
[1729396114668,0.0423882,68195.0,68194.0,0.37744647]
[1729396117870,0.0002,68195.0,68194.0,0.47333795]
[1729396119074,0.3608,68202.0,68194.0,0.47333795]
[1729396119275,0.065987,68198.0,68197.0,0.08800561]
[1729396119474,0.065987,68198.0,68197.0,0.18389896]
[1729396119674,0.065987,68198.0,68197.0,0.40499931]
[1729396121977,0.065987,68198.0,68197.0,0.43130701]
[1729396125982,0.10816269,68198.0,68197.0,0.22110035]
[1729396126284,0.065989,68197.0,68196.0,0.2192758]
[1729396126482,0.1561905,68197.0,68196.0,0.2192758]
[1729396126677,0.065989,68196.0,68195.0,0.15723]
[1729396126874,0.1561905,68196.0,68195.0,0.15723]
[1729396127182,0.1561905,68196.0,68195.0,0.3765058]
[1729396132582,0.1561905,68196.0,68195.0,0.3105158]
[1729396132978,0.065989,68196.0,68195.0,0.52072961]
[1729396133874,0.065989,68196.0,68195.0,0.52072641]
[1729396134883,0.065989,68196.0,68195.0,0.51976641]
[1729396138886,0.065989,68196.0,68195.0,0.51974237]
[1729396141083,0.15701544,68196.0,68195.0,0.3095558]
[1729396142284,0.15702119,68196.0,68195.0,0.3095558]
[1729396145495,0.15702119,68196.0,68195.0,0.3755458]
[1729396147888,0.065989,68196.0,68195.0,0.58453214]
[1729396151389,0.065989,68196.0,68195.0,0.49425214]
[1729396151590,0.065989,68196.0,68195.0,0.58453214]
[1729396152197,0.065989,68196.0,68195.0,0.58623118]
[1729396155985,0.065989,68196.0,68195.0,0.3755458]
[1729396162114,0.065989,68196.0,68195.0,0.2852658]
[1729396162313,0.065989,68196.0,68195.0,0.3747858]
[1729396163101,0.065989,68196.0,68195.0,0.5854135]
[1729396166999,0.065989,68196.0,68195.0,0.58540382]
[1729396172010,0.065989,68196.0,68195.0,0.58541815]
[1729396172512,0.065989,68196.0,68195.0,0.58541843]
[1729396177018,0.065989,68196.0,68195.0,0.58543663]
[1729396178112,0.065989,68196.0,68195.0,0.3747858]
[1729396186243,0.065989,68196.0,68195.0,0.5854831]
[1729396186633,0.065989,68196.0,68195.0,0.4959631]
[1729396186830,0.065989,68196.0,68195.0,0.5854831]
[1729396191837,0.065989,68196.0,68195.0,0.58544301]
[1729396193739,0.065989,68196.0,68195.0,0.49592301]
[1729396193939,0.065989,68196.0,68195.0,0.58536301]
[1729396194140,0.065989,68196.0,68195.0,0.47081022]
[1729396194342,0.065989,68196.0,68195.0,0.58536345]
[1729396196741,0.065989,68196.0,68195.0,0.58533572]
[1729396200042,0.065989,68196.0,68195.0,0.3747058]
[1729396208049,0.065989,68196.0,68195.0,0.58536213]
[1729396211658,0.065985,68200.0,68195.0,0.51937213]
[1729396211956,0.065985,68200.0,68197.0,0.065988]
[1729396212254,0.065985,68200.0,68198.0,0.42969096]
[1729396212453,0.065985,68200.0,68199.0,0.21065633]
[1729396212955,0.065985,68200.0,68199.0,0.43180253]
[1729396215144,0.10782936,68200.0,68199.0,0.2211462]
[1729396215554,0.065987,68199.0,68198.0,0.22029728]
[1729396215750,0.10783136,68199.0,68198.0,0.22029728]
[1729396215955,0.10783136,68199.0,68197.0,0.065988]
[1729396216151,0.04184436,68198.0,68197.0,0.065988]
[1729396216663,0.04184436,68198.0,68197.0,0.28697506]
[1729396219551,0.04183522,68198.0,68197.0,0.28697506]
[1729396219745,0.10782222,68198.0,68197.0,0.28697506]
[1729396220960,0.065987,68198.0,68197.0,0.28697506]
[1729396223255,0.065987,68198.0,68197.0,0.49764012]
[1729396224558,0.065987,68198.0,68197.0,0.49763674]
[1729396225058,0.3608,68202.0,68197.0,0.43164874]
[1729396225266,0.426784,68202.0,68201.0,0.065984]
[1729396225560,0.426784,68202.0,68201.0,0.38066079]
[1729396226453,0.426784,68202.0,68201.0,0.31467679]
[1729396227965,0.426784,68202.0,68201.0,0.40265896]
[1729396228263,0.426784,68202.0,68201.0,0.31467679]
[1729396229265,0.426784,68202.0,68201.0,0.31466247]
[1729396230254,0.46862938,68202.0,68201.0,0.21857033]
[1729396232060,0.46862938,68202.0,68201.0,0.2454475]
[1729396232569,0.46866794,68202.0,68201.0,0.2454475]
[1729396234365,0.46861203,68202.0,68201.0,0.2454475]
[1729396238158,0.426784,68202.0,68201.0,0.34149273]
[1729396239570,0.426784,68202.0,68201.0,0.34148408]
[1729396240876,0.065984,68202.0,68201.0,0.34148408]
[1729396241072,0.426784,68202.0,68201.0,0.34148408]
[1729396241865,0.065984,68202.0,68201.0,0.45595492]
[1729396243971,0.065984,68202.0,68201.0,0.52193892]
[1729396246970,0.3608,68210.0,68201.0,0.45560646]
[1729396247164,0.06618,68206.0,68203.0,0.066182]
[1729396247365,0.0002,68206.0,68204.0,0.21015896]
[1729396247562,0.06618,68205.0,68204.0,0.43098975]
[1729396248577,0.06618,68205.0,68204.0,0.4305137]
[1729396250472,0.06618,68205.0,68204.0,0.31649072]
[1729396250880,0.06618,68205.0,68204.0,0.43047865]
[1729396253281,0.10841933,68205.0,68204.0,0.22083079]
[1729396253580,0.10842145,68205.0,68204.0,0.22083079]
[1729396257685,0.10842145,68205.0,68204.0,0.28681179]
[1729396260380,0.06618,68205.0,68204.0,0.4962679]
[1729396261686,0.06618,68205.0,68204.0,0.38236825]
[1729396266481,0.06618,68205.0,68204.0,0.38236736]
[1729396268291,0.06618,68205.0,68204.0,0.28681179]
[1729396274886,0.06618,68205.0,68204.0,0.64761179]
[1729396275492,0.06618,68205.0,68204.0,0.85708946]
[1729396276295,0.06618,68205.0,68204.0,0.85708652]
[1729396279691,0.06618,68205.0,68204.0,0.49628652]
[1729396279895,0.06618,68205.0,68204.0,0.85708652]
[1729396280494,0.06618,68205.0,68204.0,0.85717754]
[1729396280994,0.06618,68205.0,68204.0,0.49637664]
[1729396281201,0.06618,68205.0,68204.0,0.85717664]
[1729396281891,0.06618,68205.0,68204.0,0.49637664]
[1729396282087,0.06618,68205.0,68204.0,0.85717664]
[1729396282293,0.06618,68205.0,68204.0,0.94645664]
[1729396282791,0.06618,68205.0,68204.0,0.58565664]
[1729396283195,0.06618,68205.0,68204.0,0.94645664]
[1729396284688,0.06618,68205.0,68204.0,0.58565664]
[1729396284898,0.06618,68205.0,68204.0,0.94645664]
[1729396285097,0.06618,68205.0,68204.0,0.58565664]
[1729396285397,0.06618,68205.0,68204.0,0.94645664]
[1729396285994,0.06618,68205.0,68204.0,0.58564416]
[1729396286195,0.06618,68205.0,68204.0,0.94644416]
[1729396287099,0.06618,68205.0,68204.0,0.58564416]
[1729396287489,0.06618,68205.0,68204.0,0.94644416]
[1729396287701,0.06618,68205.0,68204.0,0.58564416]
[1729396288208,0.06618,68205.0,68204.0,0.94644416]
[1729396289902,0.06618,68205.0,68204.0,0.58564416]
[1729396290206,0.06618,68205.0,68204.0,0.94644416]
[1729396290397,0.10857221,68205.0,68204.0,0.73689179]
[1729396290794,0.10857221,68205.0,68204.0,0.37609179]
[1729396290996,0.10857221,68205.0,68204.0,0.73689179]
[1729396291502,0.10857221,68205.0,68204.0,0.37609179]
[1729396292403,0.10857221,68205.0,68204.0,0.73689179]
[1729396292608,0.10857221,68205.0,68204.0,0.37609179]
[1729396292810,0.10857752,68205.0,68204.0,0.73689179]
[1729396293198,0.10857752,68205.0,68204.0,0.37609179]
[1729396293402,0.10857752,68205.0,68204.0,0.73689179]
[1729396295508,0.10857752,68205.0,68204.0,0.37609179]
[1729396296009,0.10857752,68205.0,68204.0,0.73689179]
[1729396296199,0.10857752,68205.0,68204.0,0.37609179]
[1729396296401,0.10857752,68205.0,68204.0,0.73689179]
[1729396297808,0.04259752,68205.0,68204.0,0.73689179]
[1729396298201,0.04259752,68205.0,68204.0,0.37609179]
[1729396298404,0.04259752,68205.0,68204.0,0.94635896]
[1729396298405,0.0002,68205.0,68204.0,0.94635896]
[1729396298606,0.0002,68205.0,68204.0,0.85707896]
[1729396298805,0.0002,68205.0,68204.0,0.8324533]
[1729396299311,0.0002,68205.0,68204.0,0.4716533]
[1729396299501,0.0002,68205.0,68204.0,0.8324533]